bitfinex-derivatives/quotes_ETHF0:USTF0_20240826
["timestamp","ask_amount","ask_price","bid_price","bid_amount"]
[1724710585207,0.37625338,2688.7,2688.5,0.00968087]
[1724710585415,0.37625338,2688.7,2688.5,0.38152087]
[1724710586405,0.37624338,2688.7,2688.5,0.38151087]
[1724710586803,0.00443338,2688.7,2688.5,0.00968087]
[1724710587009,0.00443338,2688.7,2688.6,0.37183]
[1724710587202,0.37624338,2688.7,2688.5,0.38151087]
[1724710588615,0.37183,2688.6,2688.5,0.00968087]
[1724710589111,0.37189,2688.2,2687.9,0.37191]
[1724710589710,0.37189,2688.2,2688.0,0.37191]
[1724710590112,0.78018025,2688.4,2688.1,0.3719]
[1724710590307,1.15205025,2688.4,2688.1,0.3719]
[1724710590708,0.76685025,2688.4,2688.1,0.3719]
[1724710592314,0.39498025,2688.4,2688.1,0.3719]
[1724710592508,0.76684025,2688.4,2688.1,0.3719]
[1724710592904,0.00558025,2688.4,2688.2,0.37188]
[1724710593115,0.00558025,2688.4,2688.3,0.7347]
[1724710593317,0.37743025,2688.4,2688.3,0.7347]
[1724710596305,0.37743025,2688.4,2688.3,0.3686]
[1724710597615,0.37743025,2688.4,2688.3,0.74047]
[1724710597818,0.00558025,2688.4,2688.3,0.74047]
[1724710604021,0.00558025,2688.4,2688.3,2.08047]
[1724710616832,0.00558025,2688.4,2688.3,2.5151812]
[1724710617242,0.00558025,2688.4,2688.3,3.47781199]
[1724710617543,0.00558025,2688.4,2688.3,5.33749736]
[1724710617721,0.00558025,2688.4,2688.3,3.47781199]
[1724710617926,0.00558025,2688.4,2688.3,5.33747753]
[1724710618924,1.45854812,2688.6,2688.4,0.92964]
[1724710619124,4.09243338,2688.7,2688.6,0.37183]
[1724710619325,0.00443338,2688.7,2688.6,1.33661002]
[1724710619526,0.00443338,2688.7,2688.6,8.93071719]
[1724710620028,0.00443338,2688.7,2688.6,9.82539871]
[1724710620336,0.00443338,2688.7,2688.6,11.27294284]
[1724710620842,0.00443338,2688.7,2688.6,8.93073445]
[1724710621326,0.00443338,2688.7,2688.6,10.79019455]
[1724710621632,0.00443338,2688.7,2688.5,3.16884413]
[1724710621633,1.8348015,2688.7,2688.5,2.09313]
[1724710621836,1.34,2688.6,2688.3,1.33339728]
[1724710622032,0.37187,2688.3,2688.2,2.30479728]
[1724710622233,0.37187,2688.3,2688.2,0.96479728]
[1724710622234,1.71187,2688.3,2688.2,0.96479728]
[1724710622430,0.3719,2688.1,2688.0,0.00264882]
[1724710622625,3.17454873,2688.1,2688.0,0.00264882]
[1724710622828,3.17454873,2688.1,2687.8,1.34230753]
[1724710622829,0.37192,2687.9,2687.8,0.00558025]
[1724710623027,1.71192,2687.9,2687.8,0.00558025]
[1724710623233,7.38054837,2687.9,2687.8,0.00558025]
[1724710623542,6.89499055,2687.9,2687.8,0.00558025]
[1724710623931,6.89499055,2687.9,2687.8,0.00868385]
[1724710624236,0.97475866,2687.9,2687.8,0.00868385]
[1724710624435,0.97475866,2687.9,2687.8,0.38062385]
[1724710624735,0.97475866,2688.0,2687.8,0.38062385]
[1724710624930,0.97475866,2687.9,2687.8,0.38062385]
[1724710625127,0.97475866,2688.0,2687.8,0.38062385]
[1724710625328,0.97475866,2688.0,2687.9,0.37192]
[1724710625534,0.97475866,2688.0,2687.8,0.38061385]
[1724710626736,0.97475866,2688.0,2687.9,0.37192]
[1724710628129,1.34666866,2688.0,2687.8,0.38061385]
[1724710628534,1.34667866,2687.9,2687.8,0.00868385]
[1724710628936,0.37192,2687.9,2687.8,0.00868385]
[1724710629136,0.97475866,2688.0,2687.8,0.38062385]
[1724710629137,1.34667866,2688.0,2687.8,0.38062385]
[1724710629642,1.34667866,2688.0,2687.8,0.00868385]
[1724710630245,1.34667866,2688.0,2687.8,0.38061385]
[1724710633442,0.37192,2687.9,2687.8,0.00868385]
[1724710633645,1.34667866,2687.9,2687.8,0.00868385]
[1724710633951,1.34667866,2688.0,2687.8,0.38062385]
[1724710635545,0.97475866,2688.0,2687.9,0.37192]
[1724710635749,1.34665866,2688.1,2687.9,0.37192]
[1724710635945,0.97475866,2688.0,2687.9,0.37192]
[1724710636951,1.34666866,2688.0,2687.9,0.37192]
[1724710639249,1.34666866,2688.0,2687.8,0.00868385]
[1724710639449,1.34666866,2688.0,2687.8,0.38061385]
[1724710639945,1.34667866,2687.9,2687.8,0.00868385]
[1724710640454,5.06747866,2687.9,2687.8,0.00868385]
[1724710642750,4.09272,2687.9,2687.8,0.00868385]
[1724710642945,5.06747866,2687.9,2687.8,0.00868385]
[1724710643142,5.55499055,2687.9,2687.8,0.00868385]
[1724710643347,0.37196,2687.7,2687.5,0.37197]
[1724710643547,1.0963,2687.6,2687.5,0.37197]
[1724710644245,1.0963,2687.6,2687.5,0.37644017]
[1724710644646,0.7247,2687.6,2687.5,0.37644017]
[1724710644946,0.37194,2687.8,2687.7,0.37195]
[1724710645141,4.18120208,2687.9,2687.8,0.37194]
[1724710645753,3.2078,2687.9,2687.8,0.37194]
[1724710645949,3.2078,2687.9,2687.8,1.71194]
[1724710646863,0.97340208,2688.1,2687.8,1.34]
[1724710647054,1.34540208,2688.2,2688.1,0.3719]
[1724710647453,1.71728208,2688.2,2688.1,0.7623]
[1724710648050,3.05728208,2688.2,2688.1,0.3904]
[1724710648247,2.68540208,2688.2,2687.9,0.76271]
[1724710648550,0.37191,2688.0,2687.9,0.37191]
[1724710648752,1.34531208,2688.0,2687.9,0.37191]
[1724710648958,1.72730208,2688.0,2687.9,0.37191]
[1724710649258,0.7539,2688.0,2687.9,0.37191]
[1724710649858,0.3774,2688.0,2687.9,0.37191]
[1724710651253,0.97340208,2688.1,2688.0,0.37191]
[1724710651559,0.3719,2688.1,2688.0,0.37191]
[1724710651760,4.0919,2688.1,2688.0,0.37191]
[1724710651953,0.3719,2688.1,2688.0,0.37191]
[1724710652158,0.3719,2688.1,2687.9,0.37191]
[1724710652863,0.3719,2688.1,2688.0,0.37191]
[1724710653464,1.71729208,2688.2,2687.7,3.6004]
[1724710653661,1.71729208,2688.2,2688.0,0.3719]
[1724710653857,0.97340208,2688.2,2688.1,1.1082]
[1724710654066,4.088,2688.4,2688.1,5.27387538]
[1724710654362,0.97783546,2688.7,2688.2,6.93]
[1724710654665,0.00443338,2688.7,2688.6,0.37183]
[1724710655059,0.00443338,2688.7,2688.6,4.09103]
[1724710655467,0.00443338,2688.7,2688.6,4.44863]
[1724710656465,0.00443338,2688.7,2688.6,4.80553]
[1724710659462,0.00443338,2688.7,2688.6,17.02654236]
[1724710659669,0.00372018,2688.9,2688.8,4.5113]
[1724710659871,3.2078,2689.4,2689.3,0.37173]
[1724710660360,4.445,2689.7,2689.6,0.37169]
[1724710660557,0.00375743,2689.7,2689.6,0.00475754]
[1724710660969,0.00375743,2689.7,2689.6,0.37644754]
[1724710661166,0.00375743,2689.7,2689.6,4.09404754]
[1724710661369,0.00375743,2689.7,2689.6,0.00475754]
[1724710661573,0.37542743,2689.7,2689.6,0.00475754]
[1724710661762,4.09302743,2689.7,2689.6,0.00475754]
[1724710665660,5.02221743,2689.7,2689.6,0.00475754]
[1724710666267,0.3717,2689.5,2689.4,0.00558025]
[1724710666469,4.51096,2689.5,2689.4,0.00558025]
[1724710666672,13.22936,2689.5,2689.4,0.00558025]
[1724710667370,13.22936,2689.5,2689.4,0.00975794]
[1724710667567,12.3001,2689.5,2689.4,0.00975794]
[1724710667877,4.0901,2689.5,2689.4,0.00975794]
[1724710668367,1.1127,2689.6,2689.4,0.38146794]
[1724710668972,1.1127,2689.6,2689.5,0.3717]
[1724710669272,1.1127,2689.6,2689.4,0.38146794]
[1724710669779,0.3717,2689.5,2689.4,0.00975794]
[1724710673369,0.3717,2689.5,2689.4,0.38147794]
[1724710673671,0.3717,2689.5,2689.4,0.00975794]
[1724710674174,0.3717,2689.5,2689.4,0.38147794]
[1724710674371,0.3645,2689.6,2689.5,0.3717]
[1724710674578,3.21155743,2689.7,2689.6,0.37169]
[1724710677471,3.58322743,2689.7,2689.6,0.37169]
[1724710677675,3.21155743,2689.7,2689.6,0.37169]
[1724710678975,3.58322743,2689.7,2689.6,0.37169]
[1724710679574,3.21155743,2689.7,2689.6,0.37169]
[1724710679964,3.21155743,2689.7,2689.5,0.7428]
[1724710680169,0.37169,2689.6,2689.5,1.11449]
[1724710680663,0.37169,2689.6,2689.5,4.83289]
[1724710680873,3.58323743,2689.7,2689.6,0.37169]
[1724710681172,3.58322743,2689.7,2689.6,0.37169]
[1724710681575,3.21155743,2689.7,2689.6,0.37169]
[1724710682690,7.85836743,2689.7,2689.4,0.00975794]
[1724710682867,7.85836743,2689.7,2689.4,0.38146794]
[1724710682868,0.3717,2689.5,2689.4,0.38146794]
[1724710684375,0.3717,2689.5,2689.4,0.00975794]
[1724710684571,0.7257,2689.5,2689.4,0.00975794]
[1724710685378,0.7257,2689.5,2689.4,0.38147794]
[1724710685578,4.4441,2689.5,2689.4,0.00975794]
[1724710686879,4.4441,2689.5,2689.4,0.38147794]
[1724710687077,4.0724,2689.5,2689.4,0.38147794]
[1724710687281,0.354,2689.5,2689.4,0.38147794]
[1724710687474,0.7477,2689.6,2689.5,0.3717]
[1724710687475,0.376,2689.6,2689.5,0.3717]
[1724710687782,3.21155743,2689.7,2689.6,0.37169]
[1724710688681,3.58322743,2689.7,2689.6,0.37169]
[1724710692383,3.21155743,2689.7,2689.6,0.37169]
[1724710693694,0.00375743,2689.7,2689.6,0.37169]
[1724710696695,0.00375743,2689.7,2689.6,8.22852]
[1724710696891,0.00375743,2689.7,2689.6,9.15775]
[1724710697295,4.088,2690.5,2690.4,0.37158]
[1724710697589,0.37154,2690.7,2690.3,3.21]
[1724710697800,0.3738,2690.7,2690.4,0.3694]
[1724710698086,0.3738,2690.7,2690.0,4.66049288]
[1724710698087,3.21,2690.5,2690.0,4.66049288]
[1724710698287,0.37161,2690.2,2690.0,0.72513]
[1724710698491,0.37161,2690.2,2689.9,0.3897]
[1724710698699,0.3675,2690.1,2689.9,0.76134]
[1724710699387,0.73913,2690.1,2689.9,0.3897]
[1724710699595,0.37163,2690.0,2689.9,0.3897]
[1724710699804,1.71252208,2690.1,2689.9,0.3897]
[1724710700097,0.37165,2689.9,2689.7,0.3535]
[1724710700296,0.3589,2689.8,2689.7,0.3535]
[1724710700793,0.97340208,2690.0,2689.7,0.3535]
[1724710700998,0.37164,2690.0,2689.7,0.72517]
[1724710701891,0.37164,2690.0,2689.8,0.37166]
[1724710702288,2.07143208,2690.1,2689.8,0.37166]
[1724710702793,0.97340208,2690.0,2689.8,0.37166]
[1724710702989,2.07143208,2690.1,2689.8,0.37166]
[1724710703300,2.07143208,2690.1,2689.7,0.72517]
[1724710703301,0.37163,2690.0,2689.7,0.72517]
[1724710703598,1.34503208,2690.0,2689.7,0.72517]
[1724710703989,1.34503208,2690.0,2689.8,0.37166]
[1724710705698,2.54830313,2690.1,2689.9,0.37165]
[1724710705699,2.43323208,2690.1,2689.9,0.37165]
[1724710706500,6.15083208,2690.1,2689.9,0.37165]
[1724710706997,6.15083208,2690.1,2689.7,0.3535]
[1724710706998,6.15083208,2690.1,2689.8,0.37165]
[1724710707194,0.37163,2690.0,2689.8,0.37165]
[1724710707386,1.34503208,2690.0,2689.8,0.37165]
[1724710709095,0.97340208,2690.0,2689.7,0.3535]
[1724710709392,1.46010313,2689.8,2689.4,0.00975794]
[1724710709589,0.97308129,2689.6,2689.4,0.00975794]
[1724710710188,1.34477129,2689.6,2689.4,0.38147794]
[1724710711599,0.97308129,2689.6,2689.4,0.38147794]
[1724710711790,0.97308129,2689.6,2689.5,0.3717]
[1724710712101,0.97308129,2689.6,2689.4,0.38146794]
[1724710712400,1.34477129,2689.6,2689.4,0.38146794]
[1724710713699,0.97308129,2689.5,2689.4,0.38146794]
[1724710713896,0.97308129,2689.6,2689.4,0.38146794]
[1724710715000,1.34477129,2689.6,2689.4,0.38146794]
[1724710715300,0.97308129,2689.5,2689.4,0.38146794]
[1724710716905,1.34478129,2689.5,2689.4,0.00975794]
[1724710717107,2.21150313,2689.5,2689.4,0.00975794]
[1724710718502,4.4698,2689.5,2689.4,0.00975794]
[1724710718804,10.55688837,2689.5,2689.4,0.00975794]
[1724710719003,0.9293,2689.4,2688.8,1.68199685]
[1724710719297,0.9293,2689.4,2688.7,0.3718]
[1724710719298,0.37179,2688.9,2688.7,0.3718]
[1724710719508,0.7384,2688.8,2688.7,0.3718]
[1724710719890,0.7384,2688.8,2688.7,0.37549749]
[1724710720108,0.3792,2688.8,2688.7,0.37549749]
[1724710724207,0.3792,2688.8,2688.7,0.00369749]
[1724710724505,0.3792,2688.8,2688.7,0.37550749]
[1724710729408,0.3792,2688.8,2688.7,0.00369749]
[1724710732020,0.3792,2688.8,2688.7,0.37550749]
[1724710732213,0.3792,2688.8,2688.7,0.00369749]
[1724710732518,0.751,2688.8,2688.7,0.00369749]
[1724710732724,4.4702,2688.8,2688.7,0.00369749]
[1724710732909,4.4702,2688.8,2688.5,0.00558025]
[1724710732910,1.3014,2688.6,2688.5,0.00558025]
[1724710733409,5.0206,2688.6,2688.5,0.00558025]
[1724710733914,5.02370507,2688.6,2688.5,0.00944337]
[1724710735213,0.37187,2688.3,2688.2,0.367]
[1724710735408,0.3527,2688.5,2688.1,0.364]
[1724710735605,0.37188,2688.2,2688.1,0.364]
[1724710735917,0.74776,2688.4,2688.1,0.7359]
[1724710736117,0.3864,2688.3,2688.1,0.7359]
[1724710736313,0.3864,2688.3,2688.2,0.3554]
[1724710736517,0.3864,2688.3,2688.2,0.72728]
[1724710737323,0.3864,2688.3,2688.2,0.3554]
[1724710740010,0.3864,2688.3,2688.2,0.72728]
[1724710740317,0.3759,2688.4,2688.2,0.72728]
[1724710740318,0.37185,2688.5,2688.2,0.72728]
[1724710740518,0.37185,2688.5,2688.3,0.3783]
[1724710740918,0.37185,2688.5,2688.2,0.72728]
[1724710742120,1.71185,2688.5,2688.2,2.06728]
[1724710745016,2.08194507,2688.6,2688.3,1.34]
[1724710745211,2.08194507,2688.6,2688.3,0.37186]
[1724710745727,0.37184,2688.5,2688.3,0.37186]
[1724710746726,1.71010507,2688.6,2688.3,0.37187]
[1724710746727,2.08194507,2688.6,2688.3,0.37187]
[1724710747133,2.08194507,2688.6,2688.4,0.37185]
[1724710749124,0.37184,2688.5,2688.4,0.37185]
[1724710753124,0.37184,2688.5,2688.3,0.37186]
[1724710753929,0.37184,2688.5,2688.4,0.37185]
[1724710754131,2.08194507,2688.6,2688.4,0.37185]
[1724710754336,1.71010507,2688.6,2688.4,0.37185]
[1724710754834,0.37184,2688.5,2688.4,0.37185]
[1724710760651,1.71010507,2688.6,2688.5,0.37184]
[1724710760652,0.00310507,2688.6,2688.5,0.37184]
[1724710760949,0.00310507,2688.6,2688.5,1.71184]
[1724710761148,0.00310507,2688.6,2688.5,5.43104]
[1724710762137,1.34310507,2688.6,2688.4,0.73855]
[1724710762340,0.37185,2688.4,2688.3,0.37186]
[1724710762542,2.68564559,2688.5,2688.3,0.37186]
[1724710762945,1.71186,2688.4,2688.2,0.3554]
[1724710763152,0.37187,2688.3,2688.2,0.3554]
[1724710763350,0.72887,2688.3,2688.2,0.72728]
[1724710763742,0.357,2688.3,2688.2,0.72728]
[1724710766552,1.34565559,2688.4,2688.2,0.72728]
[1724710766954,0.97379559,2688.3,2688.2,0.72728]
[1724710767148,3.72,2688.3,2688.1,0.00353572]
[1724710767355,3.72,2688.3,2687.9,1.45312438]
[1724710767356,0.3719,2688.1,2687.9,0.00558025]
[1724710767651,0.3719,2688.1,2687.9,1.3398871]
[1724710767652,0.97436838,2688.1,2687.9,1.3398871]
[1724710767852,0.97436838,2688.1,2687.9,1.7139871]
[1724710768350,0.97436838,2688.1,2688.0,0.37191]
[1724710768743,0.97436838,2688.2,2688.0,0.37191]
[1724710768948,0.97436838,2688.1,2687.9,3.05709487]
[1724710769149,0.97436838,2688.1,2688.0,0.37191]
[1724710769958,0.97436838,2688.1,2687.9,2.68518487]
[1724710769959,0.97436838,2688.1,2687.9,3.05709487]
[1724710770149,0.97436838,2688.1,2687.9,2.09469802]
[1724710770349,0.97436838,2688.1,2688.0,0.37191]
[1724710771751,0.97436838,2688.1,2688.0,1.71191]
[1724710772055,0.97436838,2688.2,2688.1,0.3719]
[1724710772248,0.97436838,2688.2,2688.1,1.7119]
[1724710772851,0.97436838,2688.2,2688.1,0.3719]
[1724710773252,3.17343298,2688.3,2688.1,0.7555]
[1724710773463,1.46156298,2688.2,2688.1,0.75549]
[1724710773660,1.71187,2688.3,2688.1,0.75549]
[1724710773661,3.17343298,2688.3,2688.1,0.75549]
[1724710774660,0.97441541,2688.2,2688.1,0.75549]
[1724710775060,3.17343298,2688.3,2688.1,0.75549]
[1724710775367,1.46156298,2688.2,2688.1,0.75549]
[1724710776361,1.71188,2688.2,2688.1,0.3836]
[1724710776660,3.17383438,2688.2,2688.1,0.3836]
[1724710777164,3.17383438,2688.2,2687.9,0.97108487]
[1724710777165,0.37191,2688.0,2687.9,0.97108487]
[1724710777386,5.0419124,2688.0,2687.9,0.00868802]
[1724710777567,7.29971,2688.0,2687.9,0.00868802]
[1724710777756,7.67311,2688.0,2687.9,0.00868802]
[1724710777957,8.03171,2688.0,2687.9,0.00868802]
[1724710778156,8.96149,2688.0,2687.9,0.00868802]
[1724710779265,8.03171,2688.0,2687.9,0.00868802]
[1724710779769,9.49353228,2688.0,2687.9,0.00868802]
[1724710780461,1.83373228,2688.0,2687.9,0.00868802]
[1724710780660,0.37191,2688.0,2687.9,0.00868802]
[1724710781465,1.83373228,2688.0,2687.9,0.00868802]
[1724710782168,0.37191,2688.0,2687.9,0.00868802]
[1724710782561,1.83373228,2688.0,2687.9,0.00868802]
[1724710783165,1.34610821,2688.0,2687.9,0.00868802]
[1724710783365,5.55373228,2688.0,2687.9,0.00868802]
[1724710783766,5.55373228,2688.0,2687.3,2.29071378]
[1724710783767,12.85758,2688.0,2687.3,0.96239685]
[1724710784071,1.34,2687.4,2687.0,0.96239685]
[1724710784262,0.37205,2687.0,2686.7,0.96239685]
[1724710784462,1.34,2686.8,2686.7,0.37209]
[1724710784860,1.34,2686.8,2686.7,0.75237088]
[1724710785268,1.34,2686.8,2686.7,0.38028088]
[1724710787369,1.34,2686.8,2686.7,0.75237088]
[1724710787669,1.7042,2686.9,2686.7,0.75237088]
[1724710788659,1.7042,2686.9,2686.7,1.72028088]
[1724710789059,1.7042,2686.9,2686.7,2.09236088]
[1724710789265,1.7042,2686.9,2686.7,0.38028088]
[1724710789460,2.07626,2686.9,2686.7,0.38028088]
[1724710789876,1.34,2686.8,2686.7,0.38028088]
[1724710790073,1.34,2686.8,2686.7,0.00398088]
[1724710790577,1.7042,2686.9,2686.7,0.37607088]
[1724710790871,1.7042,2686.9,2686.7,1.71607088]
[1724710790872,0.3642,2686.9,2686.7,1.71607088]
[1724710792374,0.73626,2686.9,2686.7,1.71607088]
[1724710792871,2.07626,2686.9,2686.7,0.00398088]
[1724710793273,1.34,2686.8,2686.7,0.00398088]
[1724710793473,0.3642,2686.9,2686.7,0.37607088]
[1724710793874,0.73626,2686.9,2686.7,0.37607088]
[1724710794372,2.07626,2686.9,2686.7,0.37607088]
[1724710795284,1.71208,2686.8,2686.7,0.00398088]
[1724710795671,2.09018,2686.8,2686.7,0.00398088]
[1724710797478,9.01958,2686.8,2686.7,0.00398088]
[1724710800373,8.6475,2686.8,2686.3,0.3712]
[1724710800573,1.34,2686.4,2686.3,0.3712]
[1724710800879,1.71213,2686.4,2686.3,0.3712]
[1724710801278,1.34,2686.4,2686.0,0.37218]
[1724710801475,1.34,2686.1,2686.0,0.3765523]
[1724710801669,1.34,2686.1,2686.0,0.80903719]
[1724710801866,1.34,2686.1,2686.0,0.3765523]
[1724710802078,0.73576,2686.2,2686.0,0.3765523]
[1724710802274,7.86144,2686.1,2685.9,0.00558025]
[1724710802482,3.2078,2686.1,2685.9,0.00558025]
[1724710802670,0.73576,2686.2,2685.9,0.37778025]
[1724710802982,0.37217,2686.1,2686.0,0.7715]
[1724710803275,0.3636,2686.2,2686.0,0.7747236]
[1724710803276,0.73576,2686.2,2686.0,0.7747236]
[1724710803678,0.73345,2686.3,2686.0,1.1469036]
[1724710803878,0.37217,2686.2,2686.0,1.1649236]
[1724710805283,0.37217,2686.1,2686.0,1.1649236]
[1724710805482,0.37217,2686.2,2686.0,1.1649236]
[1724710805986,0.37217,2686.1,2686.0,1.1649236]
[1724710806779,0.37217,2686.2,2686.0,1.1649236]
[1724710807974,0.37217,2686.1,2686.0,1.1649236]
[1724710810682,0.37217,2686.1,2686.0,0.7747236]
[1724710810977,0.37217,2686.1,2686.0,0.3838236]
[1724710811578,0.37217,2686.1,2686.0,0.0032236]
[1724710811879,4.09537,2686.1,2686.0,0.0032236]
[1724710814886,5.02581,2686.1,2686.0,0.0032236]
[1724710815089,5.41441,2686.1,2686.0,0.0032236]
[1724710815776,0.37217,2686.1,2686.0,0.0032236]
[1724710816079,1.29169,2686.3,2686.0,0.0032236]
[1724710816080,0.3613,2686.3,2686.0,0.0032236]
[1724710816289,0.37216,2686.2,2686.0,0.3754036]
[1724710816584,0.37216,2686.2,2686.1,0.386]
[1724710817885,3.21194824,2686.4,2686.3,0.37214]
[1724710818083,3.21194824,2686.4,2686.3,4.09454]
[1724710819179,3.21194824,2686.4,2686.2,0.75254]
[1724710819380,0.37214,2686.3,2686.2,0.3804]
[1724710819573,3.21194824,2686.4,2686.2,0.3804]
[1724710820178,0.37214,2686.3,2686.2,0.3804]
[1724710820484,0.37214,2686.3,2686.2,0.75256]
[1724710821082,0.37214,2686.3,2686.2,0.3804]
[1724710821488,0.37216,2686.2,2686.1,0.386]
[1724710823682,0.37215,2686.3,2686.1,0.75817]
[1724710823883,3.58408824,2686.4,2686.2,0.37216]
[1724710824083,3.21194824,2686.4,2686.3,0.74894]
[1724710827192,3.58407824,2686.4,2686.3,0.74894]
[1724710827496,3.58407824,2686.4,2686.3,0.3768]
[1724710828098,3.58407824,2686.4,2686.3,0.74894]
[1724710829483,3.21194824,2686.4,2686.3,0.74894]
[1724710831108,0.00414824,2686.4,2686.3,4.47134]
[1724710831285,4.66961636,2686.7,2686.3,14.01505997]
[1724710831286,0.97454424,2686.7,2686.3,14.01505997]
[1724710831488,0.97454424,2686.9,2686.8,0.37207]
[1724710831692,5.55539661,2687.0,2686.5,0.9303]
[1724710831693,0.98012449,2687.0,2686.9,0.37206]
[1724710832094,0.00558025,2687.0,2686.9,4.09366]
[1724710832503,0.00920485,2687.0,2686.9,4.09366]
[1724710834099,0.37198,2687.5,2686.9,17.78193438]
[1724710834100,0.97454424,2687.5,2686.9,17.78193438]
[1724710834302,2.69776927,2687.8,2687.5,0.37197]
[1724710834303,0.97454424,2687.7,2687.5,0.37197]
[1724710834599,2.21085636,2687.8,2687.5,0.37197]
[1724710834600,1.35164424,2687.8,2687.5,0.37197]
[1724710835099,1.72799914,2687.8,2687.5,0.37197]
[1724710836303,1.72799914,2687.8,2687.4,0.00558025]
[1724710836304,0.37198,2687.5,2687.4,0.00558025]
[1724710838403,4.47878,2687.5,2687.4,0.00558025]
[1724710839096,0.75798,2687.5,2687.4,0.00558025]
[1724710839407,3.22,2687.6,2687.4,0.00558025]
[1724710839601,3.22,2687.6,2687.4,0.37756025]
[1724710839898,3.22,2687.6,2687.5,0.3783]
[1724710840295,3.59196,2687.6,2687.5,0.3783]
[1724710841503,3.22,2687.6,2687.5,0.3783]
[1724710841707,3.22,2687.6,2687.5,0.7551]
[1724710841905,3.59196,2687.6,2687.5,0.3783]
[1724710842099,0.37198,2687.5,2687.4,0.00558025]
[1724710842599,4.09278,2687.5,2687.4,0.00558025]
[1724710842999,3.59197,2687.6,2687.4,0.00558025]
[1724710843199,3.22,2687.6,2687.4,0.00558025]
[1724710843707,0.37198,2687.5,2687.4,0.00558025]
[1724710844307,3.59197,2687.6,2687.4,0.00558025]
[1724710845509,3.59197,2687.6,2687.4,0.37757025]
[1724710846201,4.09278,2687.5,2687.4,0.00558025]
[1724710846403,8.23053,2687.5,2687.4,0.00558025]
[1724710846706,7.30058,2687.5,2687.4,0.00558025]
[1724710847608,3.57978,2687.5,2687.4,0.00558025]
[1724710847802,3.2078,2687.5,2687.4,0.37757025]
[1724710850209,0.37197,2687.6,2687.4,0.37757025]
[1724710850813,0.37197,2687.6,2687.4,0.37756025]
[1724710851014,0.37197,2687.6,2687.5,0.37198]
[1724710851213,0.37197,2687.6,2687.4,0.37756025]
[1724710851614,0.37197,2687.6,2687.5,0.37198]
[1724710851911,0.37196,2687.7,2687.5,0.37198]
[1724710852110,3.6015149,2687.8,2687.4,0.00558025]
[1724710852111,3.9734549,2687.8,2687.4,0.00558025]
[1724710852507,3.9734549,2687.8,2687.7,0.37195]
[1724710852508,3.6015149,2687.8,2687.7,0.37195]
[1724710852708,3.9734549,2687.8,2687.7,0.37195]
[1724710853311,0.37196,2687.6,2687.5,0.37197]
[1724710853629,0.37196,2687.6,2687.4,0.37756025]
[1724710853630,3.59196,2687.6,2687.4,0.37756025]
[1724710853808,0.37198,2687.5,2687.4,0.37756025]
[1724710854116,3.57978,2687.5,2687.4,0.00558025]
[1724710854419,4.87743,2687.5,2687.4,0.00558025]
[1724710855112,8.59823,2687.5,2687.4,0.00558025]
[1724710856014,4.87743,2687.5,2687.4,0.00558025]
[1724710859008,3.94748,2687.5,2687.4,0.00558025]
[1724710859619,3.57978,2687.5,2687.4,0.00558025]
[1724710859805,3.57978,2687.5,2687.4,0.37757025]
[1724710860319,3.57978,2687.5,2687.4,0.73927025]
[1724710860513,3.57978,2687.5,2687.4,0.36728025]
[1724710860813,0.37198,2687.5,2687.4,0.36728025]
[1724710862015,3.59197,2687.6,2687.4,0.36728025]
[1724710862216,0.37198,2687.5,2687.4,1.09186025]
[1724710862920,0.37198,2687.5,2687.4,0.36728025]
[1724710863920,1.30193,2687.5,2687.4,0.00558025]
[1724710864121,14.52088,2687.5,2687.4,0.00558025]
[1724710864313,3.59205,2687.0,2686.8,0.37207]
[1724710864513,0.37206,2686.9,2686.8,0.37207]
[1724710865020,0.37206,2686.9,2686.7,0.75508]
[1724710865328,0.37207,2686.8,2686.7,0.383]
[1724710866015,0.3721,2686.6,2686.5,0.00558025]
[1724710866418,0.3721,2686.7,2686.5,0.00558025]
[1724710866926,0.3721,2686.6,2686.5,0.00558025]
[1724710867126,0.3721,2686.7,2686.5,0.00558025]
[1724710867721,3.2078,2686.8,2686.5,0.00558025]
[1724710867918,1.70908771,2687.1,2686.9,0.37205]
[1724710868124,1.10954,2687.1,2686.8,0.37207]
[1724710868319,1.10954,2687.1,2686.9,0.3707]
[1724710868727,0.7375,2687.1,2686.9,0.74276]
[1724710869022,1.10954,2687.1,2686.9,0.74276]
[1724710869622,0.7375,2687.1,2686.9,0.3707]
[1724710869827,3.59203,2687.2,2687.0,0.37205]
[1724710870026,3.59203,2687.2,2687.0,0.3617]
[1724710870332,4.56361771,2687.2,2687.0,0.3617]
[1724710870727,3.59203,2687.2,2687.0,0.3617]
[1724710870927,0.37203,2687.1,2687.0,0.3617]
[1724710871231,3.22,2687.2,2687.0,0.73374]
[1724710871232,4.56360771,2687.2,2687.0,0.73374]
[1724710871623,4.56360771,2687.2,2687.0,0.3617]
[1724710872023,0.37203,2687.1,2687.0,0.3617]
[1724710874135,0.37203,2687.1,2687.0,0.73375]
[1724710874335,0.37203,2687.1,2687.0,0.3617]
[1724710875340,0.97158771,2687.1,2687.0,0.73375]
[1724710875540,0.97158771,2687.2,2687.1,0.37203]
[1724710875838,0.97158771,2687.2,2687.0,0.3617]
[1724710875839,0.97158771,2687.3,2687.2,0.37202]
[1724710876239,0.97158771,2687.4,2687.3,0.37201]
[1724710876546,5.43155771,2687.6,2687.4,0.37199]
[1724710876741,0.97158771,2687.6,2687.5,0.37198]
[1724710876941,1.83377636,2687.7,2687.5,0.37198]
[1724710877143,1.83377636,2687.7,2687.5,0.37197]
[1724710877342,1.83377636,2687.6,2687.4,0.73148]
[1724710877546,0.97440636,2687.5,2687.4,0.73148]
[1724710877943,0.97440636,2687.5,2687.4,4.45228]
[1724710878346,0.97440636,2687.5,2687.4,0.73148]
[1724710878544,0.97440636,2687.5,2687.4,4.45228]
[1724710880144,0.97440636,2687.7,2687.6,0.37196]
[1724710880648,0.37195,2687.7,2687.6,0.37196]
[1724710881343,8.63208126,2687.8,2687.6,0.37196]
[1724710881553,1.46181636,2687.7,2687.3,0.96880632]
[1724710881741,4.19436271,2687.5,2687.3,0.372]
[1724710882138,4.57326271,2687.5,2687.2,0.96880632]
[1724710882337,4.19436271,2687.3,2687.0,0.96880632]
[1724710882539,0.37202,2687.2,2687.1,0.37203]